[Event "Sabato rapido!"]
[Site "Chess.com"]
[Date "2020.06.13"]
[Round "4"]
[White "sergiodone"]
[Black "malberici"]
[Result "0-1"]
[WhiteElo "1512"]
[BlackElo "1374"]
[TimeControl "720+3"]
[EndTime "7:37:05 PDT"]
[Termination "malberici ha vinto per abbandono"]

1. e4 {[%clk 0:12:02.9]} 1... Nf6 {[%clk 0:12:01]} 2. e5 {[%clk 0:12:00.1]} 2...
Nd5 {[%clk 0:12:02.1]} 3. c4 {[%clk 0:12:00.3]} 3... Nb6 {[%clk 0:12:03.5]} 4.
c5 {[%clk 0:12:02.2]} 4... Nd5 {[%clk 0:12:04.6]} 5. d4 {[%clk 0:12:03.9]} 5...
d6 {[%clk 0:12:06.5]} 6. cxd6 {[%clk 0:12:04.5]} 6... exd6 {[%clk 0:12:07.1]} 7.
Nc3 {[%clk 0:12:05.3]} 7... dxe5 {[%clk 0:11:59.9]} 8. Nf3 {[%clk 0:11:44.9]}
8... exd4 {[%clk 0:11:55.3]} 9. Nxd4 {[%clk 0:11:45.5]} 9... c6 {[%clk 0:11:44]}
10. Be2 {[%clk 0:11:46.9]} 10... Bb4 {[%clk 0:11:40]} 11. O-O {[%clk 0:11:37.1]}
11... Nxc3 {[%clk 0:11:33.7]} 12. bxc3 {[%clk 0:11:37.3]} 12... Bxc3 {[%clk
0:11:34.4]} 13. Be3 {[%clk 0:10:59.5]} 13... Bxa1 {[%clk 0:11:30.9]} 14. Qxa1
{[%clk 0:11:00.8]} 14... O-O {[%clk 0:11:32.3]} 15. Rd1 {[%clk 0:10:46.6]} 15...
Qf6 {[%clk 0:11:29.9]} 16. Qb1 {[%clk 0:10:32.7]} 16... Nd7 {[%clk 0:11:23.2]}
17. Nf3 {[%clk 0:10:20.4]} 17... Ne5 {[%clk 0:11:15.5]} 18. Bd4 {[%clk
0:10:18.5]} 18... Nxf3+ {[%clk 0:11:12.4]} 19. Bxf3 {[%clk 0:10:20.1]} 19... Qf5
{[%clk 0:11:09.6]} 20. Qb2 {[%clk 0:10:16.5]} 20... f6 {[%clk 0:11:02.3]} 21. h3
{[%clk 0:09:51.5]} 21... Qb5 {[%clk 0:10:46.6]} 22. Qc3 {[%clk 0:09:07.3]} 22...
Be6 {[%clk 0:10:36.9]} 23. Ra1 {[%clk 0:07:54]} 23... Qg5 {[%clk 0:10:20.6]} 24.
Be3 {[%clk 0:07:50.2]} 24... Qe5 {[%clk 0:10:09.7]} 25. Bd4 {[%clk 0:07:47.4]}
25... Qc7 {[%clk 0:10:03.8]} 26. a4 {[%clk 0:07:43.5]} 26... a6 {[%clk
0:09:50.3]} 27. a5 {[%clk 0:07:40.9]} 27... Rad8 {[%clk 0:09:37]} 28. Bb6 {[%clk
0:07:37.5]} 28... Qd7 {[%clk 0:08:58.6]} 29. Bxd8 {[%clk 0:07:37.6]} 29... Rxd8
{[%clk 0:08:59.6]} 30. Kh2 {[%clk 0:07:33.5]} 30... Qd6+ {[%clk 0:08:57.4]} 31.
g3 {[%clk 0:07:30]} 31... Qd4 {[%clk 0:08:44.6]} 32. Qxd4 {[%clk 0:07:28.3]}
32... Rxd4 {[%clk 0:08:45.2]} 33. Rb1 {[%clk 0:07:26.5]} 33... Rd3 {[%clk
0:08:19.9]} 34. Bg2 {[%clk 0:06:50.7]} 34... Rb3 {[%clk 0:08:14.6]} 35. Re1
{[%clk 0:06:41.8]} 35... Bd5 {[%clk 0:08:08.9]} 36. Re7 {[%clk 0:06:32.6]} 36...
Bxg2 {[%clk 0:08:00.7]} 37. Kxg2 {[%clk 0:06:33]} 37... c5 {[%clk 0:08:02.2]}
38. Rc7 {[%clk 0:06:33.6]} 38... Rb5 {[%clk 0:08:02.5]} 39. h4 {[%clk
0:06:26.2]} 39... Rxa5 {[%clk 0:08:01.9]} 40. Rxb7 {[%clk 0:06:27.1]} 40... Rb5
{[%clk 0:08:03.6]} 41. Rc7 {[%clk 0:06:28.6]} 41... a5 {[%clk 0:08:03.5]} 42.
Kf1 {[%clk 0:06:22.5]} 42... a4 {[%clk 0:08:02.8]} 43. Ra7 {[%clk 0:06:20]}
43... Rb4 {[%clk 0:08:01.7]} 44. Ke1 {[%clk 0:06:16.9]} 44... c4 {[%clk
0:08:03.6]} 45. Kd2 {[%clk 0:06:17.7]} 45... Rb2+ {[%clk 0:07:52.3]} 46. Kc3
{[%clk 0:06:16.6]} 46... Rxf2 {[%clk 0:07:53.8]} 47. Kxc4 {[%clk 0:06:03.8]}
47... Rf3 {[%clk 0:07:50.1]} 48. Kd5 {[%clk 0:06:02.1]} 48... Rxg3 {[%clk
0:07:47.1]} 49. Rxa4 {[%clk 0:05:59.6]} 49... h6 {[%clk 0:07:41.8]} 50. Ke6
{[%clk 0:05:59.1]} 50... Re3+ {[%clk 0:07:37.8]} 51. Kf5 {[%clk 0:05:55.9]}
51... Kh7 {[%clk 0:07:27.4]} 52. Ra7 {[%clk 0:05:46]} 52... Re5+ {[%clk
0:07:22.4]} 53. Kg4 {[%clk 0:05:47.1]} 53... Kg6 {[%clk 0:07:20.9]} 54. Rb7
{[%clk 0:05:37.3]} 54... f5+ {[%clk 0:07:06.1]} 55. Kf4 {[%clk 0:05:29.2]} 55...
Re4+ {[%clk 0:07:04.2]} 56. Kg3 {[%clk 0:05:30.8]} 56... Kf6 {[%clk 0:07:04.3]}
57. Ra7 {[%clk 0:05:15.2]} 57... g5 {[%clk 0:06:56.4]} 58. hxg5+ {[%clk
0:04:58.9]} 58... hxg5 {[%clk 0:06:55.4]} 59. Ra6+ {[%clk 0:04:59.2]} 59... Re6
{[%clk 0:06:56.4]} 60. Ra8 {[%clk 0:05:00.7]} 60... g4 {[%clk 0:06:49]} 61. Ra7
{[%clk 0:04:45.8]} 61... Kg5 {[%clk 0:06:44.4]} 62. Ra5 {[%clk 0:04:28.3]} 62...
Re3+ {[%clk 0:06:41.3]} 63. Kg2 {[%clk 0:04:29.3]} 63... Rf3 {[%clk 0:06:35]}
64. Rb5 {[%clk 0:04:27.8]} 64... Kh4 {[%clk 0:06:26.8]} 65. Rb8 {[%clk
0:04:28.2]} 65... Rg3+ {[%clk 0:06:16.5]} 66. Kh2 {[%clk 0:04:28.1]} 66... Rf3
{[%clk 0:06:02]} 67. Kg2 {[%clk 0:04:29]} 67... Kg5 {[%clk 0:06:01.3]} 68. Rb5
{[%clk 0:04:27.4]} 68... Re3 {[%clk 0:05:55.2]} 69. Ra5 {[%clk 0:04:25.8]} 69...
g3 {[%clk 0:05:51.7]} 70. Rb5 {[%clk 0:04:19]} 70... Kg4 {[%clk 0:05:52.2]} 71.
Rb8 {[%clk 0:04:04.3]} 71... Re2+ {[%clk 0:05:50.6]} 72. Kg1 {[%clk 0:04:05.6]}
72... f4 {[%clk 0:05:51.1]} 73. Rb4 {[%clk 0:03:55.4]} 73... Kh3 {[%clk
0:05:35.2]} 74. Rxf4 {[%clk 0:03:54.5]} 74... Re1+ {[%clk 0:05:35.3]} 75. Rf1
{[%clk 0:03:55.5]} 75... Rxf1+ {[%clk 0:05:37.2]} 76. Kxf1 {[%clk 0:03:57.2]}
76... Kh2 {[%clk 0:05:39.1]} 0-1

[Event "Sabato rapido!"]
[Site "Chess.com"]
[Date "2020.06.13"]
[Round "4"]
[White "mr6701"]
[Black "APipitone"]
[Result "1-0"]
[WhiteElo "1857"]
[BlackElo "1668"]
[TimeControl "720+3"]
[EndTime "7:37:52 PDT"]
[Termination "mr6701 ha vinto per tempo"]

1. e4 {[%clk 0:12:02.9]} 1... c5 {[%clk 0:11:59.8]} 2. d4 {[%clk 0:12:03.6]}
2... cxd4 {[%clk 0:12:00]} 3. c3 {[%clk 0:12:05.7]} 3... Nc6 {[%clk 0:11:49.3]}
4. cxd4 {[%clk 0:12:07.2]} 4... d6 {[%clk 0:11:40.3]} 5. Nf3 {[%clk 0:12:07.6]}
5... e6 {[%clk 0:11:36.4]} 6. Nc3 {[%clk 0:12:05.1]} 6... g6 {[%clk 0:11:32.2]}
7. d5 {[%clk 0:12:01.1]} 7... Nb8 {[%clk 0:11:12.8]} 8. Bb5+ {[%clk 0:11:52.8]}
8... Bd7 {[%clk 0:11:12.2]} 9. dxe6 {[%clk 0:11:54.6]} 9... fxe6 {[%clk
0:11:11.3]} 10. Nd4 {[%clk 0:11:42.9]} 10... Nc6 {[%clk 0:10:41.2]} 11. O-O
{[%clk 0:11:12.2]} 11... Nf6 {[%clk 0:10:09.7]} 12. Bg5 {[%clk 0:10:45.8]} 12...
Be7 {[%clk 0:09:58.1]} 13. Bh6 {[%clk 0:10:28.5]} 13... Kf7 {[%clk 0:08:58.7]}
14. Kh1 {[%clk 0:09:32.9]} 14... a6 {[%clk 0:08:43.6]} 15. Bc4 {[%clk
0:09:27.3]} 15... Qc7 {[%clk 0:08:17.2]} 16. Rc1 {[%clk 0:09:18.6]} 16... Ne5
{[%clk 0:08:01.1]} 17. Bxe6+ {[%clk 0:08:01.9]} 17... Bxe6 {[%clk 0:06:35.1]}
18. Nd5 {[%clk 0:07:56.6]} 18... Nxd5 {[%clk 0:06:34.5]} 19. Rxc7 {[%clk
0:07:57.2]} 19... Nxc7 {[%clk 0:06:19.2]} 20. Nxe6 {[%clk 0:07:57.4]} 20... Nxe6
{[%clk 0:06:00.6]} 21. f4 {[%clk 0:07:58.3]} 21... Nc6 {[%clk 0:05:34.6]} 22. f5
{[%clk 0:07:58.7]} 22... Ned4 {[%clk 0:05:15.5]} 23. Be3 {[%clk 0:07:46]} 23...
Bf6 {[%clk 0:04:52.4]} 24. fxg6+ {[%clk 0:07:47.3]} 24... Kxg6 {[%clk
0:03:52.1]} 25. Qg4+ {[%clk 0:07:43]} 25... Kf7 {[%clk 0:03:31.3]} 26. Qf4
{[%clk 0:07:37.2]} 26... Rhf8 {[%clk 0:02:19.6]} 27. Bxd4 {[%clk 0:06:12.5]}
27... Nxd4 {[%clk 0:02:10.2]} 28. e5 {[%clk 0:06:13.5]} 28... dxe5 {[%clk
0:02:01.1]} 29. Qxe5 {[%clk 0:06:14.5]} 29... Kg6 {[%clk 0:01:43.2]} 30. Qe4+
{[%clk 0:06:05.9]} 30... Kg7 {[%clk 0:01:21.6]} 31. h4 {[%clk 0:06:06]} 31...
Rae8 {[%clk 0:00:59.1]} 32. Qxb7+ {[%clk 0:06:04.8]} 32... Kh8 {[%clk
0:00:54.3]} 33. Qxa6 {[%clk 0:05:57.5]} 33... Bxh4 {[%clk 0:00:43]} 34. b4
{[%clk 0:05:48.4]} 34... Rxf1+ {[%clk 0:00:35.7]} 35. Qxf1 {[%clk 0:05:50.1]}
35... Re1 {[%clk 0:00:32.5]} 36. Qxe1 {[%clk 0:05:45.5]} 36... Bxe1 {[%clk
0:00:29.5]} 37. a3 {[%clk 0:05:45.7]} 37... Kg7 {[%clk 0:00:29.5]} 38. b5 {[%clk
0:05:48.6]} 38... Nxb5 {[%clk 0:00:25.9]} 39. a4 {[%clk 0:05:50.6]} 39... Nc3
{[%clk 0:00:25.7]} 40. a5 {[%clk 0:05:52.1]} 40... Nb5 {[%clk 0:00:22.4]} 41. a6
{[%clk 0:05:54.1]} 41... Bf2 {[%clk 0:00:21.2]} 42. g4 {[%clk 0:05:54.3]} 42...
Kg6 {[%clk 0:00:20.9]} 43. Kg2 {[%clk 0:05:57.2]} 43... Bd4 {[%clk 0:00:19.5]}
44. Kf3 {[%clk 0:05:59.4]} 44... Kg5 {[%clk 0:00:19.5]} 45. Kg3 {[%clk
0:06:01.4]} 45... Be5+ {[%clk 0:00:19.3]} 46. Kf3 {[%clk 0:06:03.6]} 46... Bb8
{[%clk 0:00:18]} 47. Kg2 {[%clk 0:06:03.6]} 47... Kxg4 {[%clk 0:00:18.3]} 48.
Kf2 {[%clk 0:06:04.8]} 48... h5 {[%clk 0:00:19.6]} 49. Kg1 {[%clk 0:06:06.9]}
49... h4 {[%clk 0:00:21.1]} 50. Kh1 {[%clk 0:06:09.1]} 50... h3 {[%clk
0:00:22.9]} 51. Kg1 {[%clk 0:06:11.9]} 51... Ba7+ {[%clk 0:00:19.8]} 52. Kh1
{[%clk 0:06:14.8]} 52... Bb8 {[%clk 0:00:15.9]} 53. Kg1 {[%clk 0:06:15.1]} 53...
Kf3 {[%clk 0:00:13.8]} 54. Kh1 {[%clk 0:06:18]} 54... Na7 {[%clk 0:00:10.9]} 55.
Kg1 {[%clk 0:06:20.9]} 55... Nb5 {[%clk 0:00:10.3]} 56. Kh1 {[%clk 0:06:23.8]}
56... Nd4 {[%clk 0:00:10.5]} 57. Kg1 {[%clk 0:06:26.7]} 57... Ne2+ {[%clk
0:00:11]} 58. Kh1 {[%clk 0:06:29.6]} 58... Ba7 {[%clk 0:00:08]} 59. Kh2 {[%clk
0:06:30.3]} 59... Kg4 {[%clk 0:00:06.3]} 60. Kh1 {[%clk 0:06:33.2]} 1-0